fUSD/lending_fUSD_20250214
["ID","MTS","AMOUNT","RATE_DAILY","PERIOD"]
[353073596,1739542253997,-500.0,0.0001378,2]
[353073597,1739542254006,-500.0,0.0001378,2]
[353073598,1739542254016,-508.00466441,0.0001378,2]
[353073599,1739542254025,-500.0,0.0001378,2]
[353073600,1739542254034,-500.0,0.0001378,2]
[353073601,1739542254043,-500.0,0.0001378,2]
[353073602,1739542254053,-652.7,0.0001378,2]
[353073603,1739542254062,-500.0,0.0001378,2]
[353073604,1739542254072,-500.0,0.0001378,2]
[353073605,1739542254081,-772.51,0.0001378,2]
[353073606,1739542254091,-500.0,0.0001378,2]
[353073607,1739542254100,-500.0,0.0001378,2]
[353073608,1739542254110,-500.0,0.0001378,2]
[353073609,1739542254120,-962.0,0.0001378,2]
[353073610,1739542254130,-812.72,0.0001378,2]
[353073611,1739542254140,-500.0,0.0001378,2]
[353073612,1739542254151,-151.57402,0.0001378,2]
[353073613,1739542254162,-500.0,0.0001378,2]
[353073614,1739542254172,-500.0,0.0001378,2]
[353073615,1739542254182,-500.0,0.0001378,2]
[353073616,1739542254191,-500.0,0.0001378,2]
[353073617,1739542254202,-450.16181234,0.0001378,2]
[353073618,1739542254211,-500.0,0.0001378,2]
[353073619,1739542254221,-782.61,0.0001378,2]
[353073620,1739542254231,-500.0,0.0001378,2]
[353073621,1739542254240,-500.0,0.0001378,2]
[353073622,1739542254250,-2618.08,0.0001378,2]
[353073623,1739542254259,-500.0,0.0001378,2]
[353073624,1739542254269,-500.0,0.0001378,2]
[353073625,1739542254280,-500.0,0.0001378,2]
[353073626,1739542254292,-500.0,0.0001378,2]
[353073627,1739542254302,-470.39788647,0.0001378,2]
[353073628,1739542254311,-500.0,0.0001378,2]
[353073629,1739542254320,-2436.7,0.0001378,2]
[353073630,1739542254331,-2085.12,0.0001378,2]
[353073631,1739542254340,-500.0,0.0001378,2]
[353073632,1739542254349,-956.91385445,0.0001378,2]
[353073633,1739542255019,-500.0,0.00013698,2]
[353073634,1739542255029,-500.0,0.00013698,2]
[353073635,1739542255038,-371.63064555,0.00013699,2]
[353073636,1739542255049,-4731.0,0.00013699,2]
[353073637,1739542255060,-6332.2849218,0.00013699,2]
[353073638,1739542255071,-31036.77443265,0.00013699,2]
[353073639,1739542255081,-210.53614555,0.0001378,2]
[353073640,1739542255090,-500.0,0.0001378,2]
[353073641,1739542255100,-500.0,0.0001378,2]
[353073642,1739542255109,-500.0,0.0001378,2]
[353073643,1739542255118,-2718.56,0.0001378,2]
[353073644,1739542255127,-542.87,0.0001378,2]
[353073645,1739542255137,-603.96,0.0001378,2]
[353073646,1739542255146,-638.93919831,0.0001378,2]
[353073647,1739542255155,-500.0,0.0001378,2]
[353073648,1739542255164,-500.0,0.0001378,2]
[353073649,1739542255174,-786.43,0.0001378,2]
[353073650,1739542255183,-500.0,0.0001378,2]
[353073651,1739542255193,-500.0,0.0001378,2]
[353073652,1739542255202,-200.31282223,0.0001378,2]
[353073653,1739542255211,-500.0,0.0001378,2]
[353073654,1739542255220,-1808.07,0.0001378,2]
[353073655,1739542255230,-500.0,0.0001378,2]
[353073656,1739542255239,-500.0,0.0001378,2]
[353073657,1739542255249,-151.0,0.0001378,2]
[353073658,1739542255259,-500.0,0.0001378,2]
[353073659,1739542255268,-500.0,0.0001378,2]
[353073660,1739542255278,-500.0,0.0001378,2]
[353073661,1739542255291,-824.17,0.0001378,2]
[353073662,1739542255301,-559.99,0.0001378,2]
[353073663,1739542255310,-1298.68,0.0001378,2]
[353073664,1739542255320,-500.0,0.0001378,2]
[353073665,1739542255330,-564.1,0.0001378,2]
[353073666,1739542255340,-500.0,0.0001378,2]
[353073667,1739542255350,-500.0,0.0001378,2]
[353073668,1739542255361,-55.60740126,0.0001378,2]
[353073669,1739542255946,-500.0,0.00013698,2]
[353073670,1739542255956,-256.96289069,0.00013698,2]
[353073671,1739542255965,-197.53710906,0.000137,2]
[353073672,1739542255976,-1902.79213673,0.000137,2]
[353073673,1739542255988,-1743.43075421,0.000137,2]
[353073674,1739542255999,-544.57796939,0.0001378,2]
[353073675,1739542256011,-18.23462935,0.0001378,2]
[353073676,1739542256021,-397.23918745,0.0001378,2]
[353073677,1739542256031,-500.0,0.0001378,2]
[353073678,1739542256041,-500.0,0.0001378,2]
[353073679,1739542256050,-569.11,0.0001378,2]
[353073680,1739542256059,-838.28,0.0001378,2]
[353073681,1739542256069,-353.07025196,0.0001378,2]
[353073682,1739542256107,-815.43974804,0.0001378,2]
[353073683,1739542256117,-500.0,0.0001378,2]
[353073684,1739542256127,-500.0,0.0001378,2]
[353073685,1739542256137,-500.0,0.0001378,2]
[353073686,1739542256146,-596.44,0.0001378,2]
[353073687,1739542256156,-500.0,0.0001378,2]
[353073688,1739542256165,-500.0,0.0001378,2]
[353073689,1739542256175,-1159.39788745,0.0001378,2]
[353073690,1739542256187,-944.61,0.0001378,2]
[353073691,1739542256209,-504.03250077,0.0001378,2]
[353073692,1739542281275,8000.0,0.000208,60]
[353073693,1739542325626,1548.08,0.000208,60]
[353073694,1739542351029,5566.789,0.000208,60]
[353073718,1739543432061,-287.0,9.999e-05,2]
[353073719,1739543432071,-150.0,9.999e-05,2]
[353073720,1739543432081,-1128.50250275,0.0001,2]
[353073724,1739543432153,-1000.398,0.0001,2]
[353073725,1739543432323,-11829.92663611,0.0001,2]
[353073726,1739543432335,-341.79431359,0.0001,2]
[353073727,1739543432347,-286.49401117,0.0001,2]
[353073728,1739543432359,-4636.81603701,0.0001,2]
[353073729,1739543432370,-306.05575,0.0001,2]
[353073730,1739543432415,-1103.55713475,0.0001,2]
[353073894,1739543438060,-580.76465,0.0001,2]
[353073895,1739543438072,-10092.7335,0.0001,2]
[353073896,1739543438306,-4179.55394999,0.0001,2]
[353073899,1739543438318,-9774.94543347,0.0001,2]
[353074086,1739543440130,-3300.37141338,0.0001,2]
[353074089,1739543440141,-668.622,0.0001,2]
[353074091,1739543440152,-1695.03854347,0.0001,2]
[353074093,1739543440164,-277.32348794,0.0001,2]
[353074104,1739543440263,-485.79,0.0001,2]
[353074107,1739543440283,-266.86317382,0.0001,2]
[353074118,1739543440379,-986.84206142,0.0001,2]
[353074129,1739543440476,-1585.51161415,0.0001,2]
[353074131,1739543440486,-722.19529931,0.0001,2]
[353074133,1739543440497,-472.86339972,0.0001,2]
[353074135,1739543440510,-345.16037055,0.0001,2]
[353074138,1739543440521,-1323.0,0.0001,2]
[353074140,1739543440536,-31572.7057168,0.0001,2]
[353074142,1739543440547,-2025.26863157,0.0001,2]
[353074145,1739543440559,-2240.91721747,0.0001,2]
[353074151,1739543440613,-880.88012,0.0001,2]
[353074154,1739543440631,-2663.91719997,0.0001,2]
[353074424,1739543443218,-6855.90067227,0.0001,2]
[353074427,1739543443230,-1132.58449139,0.0001,2]
[353074429,1739543443248,-1469.6840553,0.0001,2]
[353074432,1739543443259,-782.84742092,0.0001,2]
[353074440,1739543443335,-236942.17362435,0.0001,2]
[353074442,1739543443347,-981.537324,0.0001,2]
[353074445,1739543443363,-798.87778546,0.0001,2]
[353074447,1739543443375,-11116.34384161,0.0001,2]
[353074450,1739543443386,-1359.61261136,0.0001,2]
[353074452,1739543443401,-4163.72940921,0.0001,2]
[353074454,1739543443412,-4686.32964663,0.0001,2]
[353074462,1739543443470,-8746.08535037,0.0001,2]
[353074464,1739543443481,-21097.77249338,0.0001,2]
[353074466,1739543443492,-10377.31968114,0.0001,2]
[353074468,1739543443503,-1570.13585198,0.0001,2]
[353074471,1739543443524,-849.72492509,0.0001,2]
[353074760,1739543446058,-44268.1075193,0.0001,2]
[353074777,1739543446149,-47549.34642279,0.0001,2]
[353074779,1739543446159,-560.61436565,0.0001,2]
[353074782,1739543446175,-820865.15199341,0.0001,2]
[353074791,1739543446255,-4939.65467606,0.0001,2]
[353074802,1739543446412,-519.57385982,0.0001,2]
[353074803,1739543446423,-159866.78520413,0.0001,2]
[353074920,1739544441432,-300.0,8.972e-05,2]
[353074921,1739544441453,-1259.929,8.973e-05,2]
[353074922,1739544441474,-4886.7753,8.973e-05,2]
[353074923,1739544441496,-200.0,9.078e-05,2]
[353074924,1739544441518,-919.24,9.183e-05,2]
[353074925,1739544441539,-158.045666,9.612e-05,2]
[353074926,1739544441561,-160.04,9.66e-05,2]
[353074927,1739544441584,-150.0,9.781e-05,2]
[353074928,1739544441605,-243.751,9.8e-05,2]
[353074929,1739544441627,-3331.717,9.8e-05,2]
[353074930,1739544441648,-500.0,9.811e-05,2]
[353074931,1739544441669,-420.0,9.869e-05,2]
[353074932,1739544441690,-200.0,9.87e-05,2]
[353074933,1739544441713,-200.0,9.87e-05,2]
[353074934,1739544441733,-524.07220074,9.973e-05,2]
[353074935,1739544441755,-233.58411766,9.973e-05,2]
[353074936,1739544441777,-500.0,9.973e-05,2]
[353074937,1739544441799,-503.12506369,9.973e-05,2]
[353074938,1739544441821,-500.0,9.973e-05,2]
[353074939,1739544441842,-151.31885475,9.973e-05,2]
[353074940,1739544441865,-172.67,9.98e-05,2]
[353074941,1739544441888,-1177.64376099,9.999e-05,3]
[353074942,1739544441909,-150.0,9.999e-05,2]
[353074943,1739544441931,-516.58942469,9.999e-05,2]
[353074944,1739544441955,-782710.09861148,0.0001,2]
[353074953,1739544540083,2879.75581038,0.00020873,60]
[353074967,1739544632440,-150.0,9.999e-05,2]
[353074968,1739544632450,-989.47024065,0.0001,2]
[353074969,1739544632529,-12635.56167257,0.0001,2]
[353074970,1739544632540,-1160.86360167,0.0001,2]
[353074971,1739544632553,-2164.8001811,0.0001,2]
[353074972,1739544632564,-13990.06597559,0.0001,2]
[353074973,1739544632726,-712.02367317,0.0001,2]
[353074974,1739544632738,-850.5665732,0.0001,2]
[353074975,1739544632750,-650.34687021,0.0001,2]
[353074976,1739544632761,-107999.4198264,0.0001,2]
[353074977,1739544632773,-1997.21734795,0.0001,2]
[353074978,1739544632789,-2236.92088886,0.0001,2]
[353074979,1739544632819,-354.92370002,0.0001,2]
[353074980,1739544632842,-274.7353825,0.0001,2]
[353074982,1739544632853,-374.9086065,0.0001,2]
[353074984,1739544632864,-458.02100012,0.0001,2]
[353074986,1739544632875,-691.49400045,0.0001,2]
[353074987,1739544632886,-284.4865955,0.0001,2]
[353074988,1739544632896,-293.998,0.0001,2]
[353074989,1739544632907,-308.0963464,0.0001,2]
[353074992,1739544632919,-292.13799996,0.0001,2]
[353074994,1739544632930,-263.77,0.0001,2]
[353074996,1739544632942,-537.44719657,0.0001,2]
[353075207,1739544638220,-453.07155895,0.0001,2]
[353075208,1739544638276,-590.13327395,0.0001,2]
[353075209,1739544638288,-182067.80258426,0.0001,2]
[353075210,1739544638298,-341.7960088,0.0001,2]
[353075211,1739544638308,-285.60943176,0.0001,2]
[353075212,1739544638317,-200.0,0.0001,2]
[353075213,1739544638327,-1291.80303204,0.0001,2]
[353075214,1739544638338,-1208.19696796,0.0001,2]
[353075215,1739544638347,-1600.37970512,0.0001,2]
[353075216,1739544638356,-154.14,0.00010137,2]
[353075217,1739544638365,-402.15781786,0.00010155,2]
[353075218,1739544638374,-200.0,0.00010156,2]
[353075219,1739544638384,-318.28050906,0.00010438,2]
[353075220,1739544638395,-182.71949094,0.00010438,2]
[353075221,1739544638405,-500.0,0.00010521,2]
[353075222,1739544638414,-341.79600875,0.0001079,2]
[353075223,1739544638424,-255.0,0.00010999,2]
[353075224,1739544638433,-200.0,0.00011,2]
[353075225,1739544638442,-234.74781032,0.00011099,2]
[353075226,1739544638451,-2961.97168999,0.00011101,2]
[353075227,1739544638489,-20938.02831001,0.00011101,2]
[353075228,1739544638499,-250.0,0.00011251,2]
[353075229,1739544638508,-360.59118789,0.0001126,2]
[353075231,1739544638517,-160.04,0.00011271,2]
[353075233,1739544638526,-150.99,0.00011281,2]
[353075235,1739544638535,-19999.99,0.00011281,2]
[353075237,1739544638544,-16960.05,0.00011281,2]
[353075239,1739544638553,-24006.06,0.00011281,2]
[353075241,1739544638562,-234.7478103,0.0001136,2]
[353075243,1739544638572,-154.84,0.00011365,2]
[353075245,1739544638582,-154.84,0.00011371,2]
[353075247,1739544638591,-1000.0,0.00011371,2]
[353075249,1739544638600,-154.84,0.00011376,2]
[353075251,1739544638609,-154.84,0.00011381,2]
[353075252,1739544638618,-154.84,0.00011386,2]
[353075254,1739544638627,-154.84,0.00011391,2]
[353075256,1739544638636,-154.84,0.00011396,2]
[353075259,1739544638645,-154.84,0.00011402,2]
[353075262,1739544638655,-154.84,0.00011407,2]
[353075266,1739544638665,-154.84,0.00011412,2]
[353075267,1739544638675,-154.84,0.00011417,2]
[353075270,1739544638685,-154.84,0.00011422,2]
[353075271,1739544638694,-919.24,0.00011446,2]
[353075273,1739544638702,-234.7478103,0.00011661,2]
[353075275,1739544638711,-341.79600875,0.00011681,2]
[353075277,1739544638720,-1134.97,0.00011856,2]
[353075279,1739544638731,-837.94,0.00011899,2]
[353075281,1739544638741,-234.7478103,0.00011961,2]
[353075283,1739544638750,-1530.3856622,0.00012,2]
[353075285,1739544638760,-2500.0,0.00012,2]
[353075287,1739544638770,-156.0,0.00012099,2]
[353075289,1739544638779,-500.0,0.00012137,2]
[353075291,1739544638788,-150.0,0.00012205,2]
[353075293,1739544638798,-150.0,0.00012205,2]
[353075295,1739544638807,-150.0,0.00012205,2]
[353075297,1739544638817,-150.0,0.00012205,2]
[353075299,1739544638826,-234.7478103,0.00012261,2]
[353075301,1739544638835,-150.0,0.00012318,2]
[353075303,1739544638844,-150.0,0.00012432,2]
[353075305,1739544638853,-1099.0,0.00012448,2]
[353075307,1739544638862,-150.0,0.00012477,2]
[353075309,1739544638871,-150.0,0.00012545,2]
[353075311,1739544638880,-150.0,0.00012545,2]
[353075313,1739544638889,-234.7478103,0.00012562,2]
[353075315,1739544638899,-341.79600875,0.00012571,2]
[353075317,1739544638908,-150.0,0.00012658,2]
[353075319,1739544638918,-150.0,0.00012748,2]
[353075321,1739544638928,-150.0,0.00012771,2]
[353075323,1739544638937,-1000.0,0.00012792,2]
[353075325,1739544638946,-331.41,0.00012839,2]
[353075327,1739544638956,-54.24267097,0.00012843,2]
[353075330,1739544638968,-277.16732903,0.00012843,2]
[353075331,1739544638978,-331.41,0.00012846,2]
[353075334,1739544638987,-331.41,0.00012849,2]
[353075336,1739544638996,-331.41,0.00012853,2]
[353075337,1739544639005,-191.07267097,0.00012856,2]
[353075340,1739544639017,-140.33732903,0.00012856,2]
[353075342,1739544639025,-331.41,0.00012859,2]
[353075344,1739544639034,-234.7478103,0.00012862,2]
[353075346,1739544639043,-43.68384056,0.00012863,2]
[353075348,1739544639054,-287.72615944,0.00012863,2]
[353075350,1739544639063,-331.41,0.00012866,2]
[353075352,1739544639073,-331.41,0.00012869,2]
[353075354,1739544639085,-331.41,0.00012873,2]
[353075356,1739544639095,-331.41,0.00012876,2]
[353075358,1739544639104,-331.41,0.0001288,2]
[353075360,1739544639113,-160.04,0.00012881,2]
[353075362,1739544639124,-331.41,0.00012883,2]
[353075364,1739544639133,-150.0,0.00012884,2]
[353075366,1739544639143,-150.0,0.00012884,2]
[353075368,1739544639152,-331.41,0.00012886,2]
[353075370,1739544639163,-317.79460122,0.0001289,2]
[353075372,1739544639177,-13.61539878,0.0001289,2]
[353075374,1739544639187,-331.41,0.00012893,2]
[353075376,1739544639196,-331.41,0.00012896,2]
[353075378,1739544639206,-331.41,0.000129,2]
[353075380,1739544639215,-331.41,0.00012903,2]
[353075382,1739544639227,-150.0,0.00012997,2]
[353075384,1739544639238,-4240.52719489,0.00013,2]
[353075386,1739544639248,-550.0,0.00013,2]
[353075388,1739544639258,-30000.0,0.00013003,2]
[353075390,1739544639267,-150.0,0.00013019,2]
[353075392,1739544639277,-150.0,0.0001311,2]
[353075394,1739544639287,-234.7478103,0.00013162,2]
[353075396,1739544639297,-150.0,0.00013223,2]
[353075398,1739544639306,-150.0,0.00013223,2]
[353075400,1739544639315,-150.0,0.0001329,2]
[353075402,1739544639325,-150.0,0.00013336,2]
[353075404,1739544639335,-837.94,0.00013386,2]
[353075406,1739544639344,-150.0,0.00013449,2]
[353075408,1739544639354,-341.79600875,0.00013461,2]
[353075410,1739544639363,-234.7478103,0.00013463,2]
[353075412,1739544639374,-8119.0,0.000135,2]
[353075414,1739544639383,-500.0,0.00013534,2]
[353075416,1739544639393,-253.27,0.00013561,2]
[353075418,1739544639402,-11112.4231969,0.00013562,2]
[353075550,1739544640643,-1140.81942229,0.00013003,2]
[353075552,1739544640652,-2193.8714193,0.00013562,2]
[353075554,1739544640663,-393.04588329,0.00013562,2]
[353075556,1739544640675,-1181.51348876,0.00013562,2]
[353075558,1739544640687,-646.09053969,0.00013562,2]
[353075562,1739544640717,-6674.15460576,0.00013562,2]
[353075564,1739544640732,-625.42636932,0.00013562,2]
[353075570,1739544640776,-27068.47449698,0.00013562,2]
[353075572,1739544640786,-150.0,0.00013562,2]
[353075574,1739544640795,-4953.0,0.00013562,2]
[353075576,1739544640805,-150.0,0.00013562,2]
[353075577,1739544640815,-1.6530631,0.00013562,2]
[353075588,1739544640915,-219.13901511,0.00013562,2]
[353075590,1739544640925,-339.13386762,0.0001357,2]
[353075591,1739544640934,-383.40711727,0.00013578,2]
[353075592,1739544640946,-2752.49288273,0.00013578,2]
[353075594,1739544640955,-262.5360447,0.00013585,2]
[353075596,1739544640965,-862.83496976,0.00013598,2]
[353075598,1739544640974,-274.18371667,0.000136,3]
[353075600,1739544640989,-19563.62231401,0.000136,3]
[353075623,1739544641224,-4.95740908,0.000136,3]
[353075625,1739544641244,-97490.0,0.000136,3]
[353075628,1739544641257,-5366.31119991,0.000136,3]
[353075630,1739544641268,-753.69950238,0.000136,3]
[353075632,1739544641279,-717.91423786,0.000136,3]
[353075634,1739544641291,-390.02186878,0.000136,3]
[353075861,1739544643448,-432.486909,0.00010886,2]
[353075864,1739544643465,-1167.8927961,0.00010886,2]
[353075866,1739544643478,-65114.1072039,0.000136,3]
[353075869,1739544643499,-1187980.85410215,0.000136,3]
[353075880,1739544643596,-236942.17362435,0.000136,3]
[353075882,1739544643643,-500.0,0.000133,4]
[353075883,1739544643654,-81643.08440264,0.000136,3]
[353075884,1739544643665,-69299.90753244,0.000136,2]
[353075885,1739544643679,-308.400007,0.000136,2]
[353075887,1739544643723,-3372.72415852,0.000136,2]
[353075890,1739544643739,-1599.69617471,0.000136,2]
[353075894,1739544643766,-2546.18677036,0.000136,2]
[353075896,1739544643780,-1620.35810267,0.000136,2]
[353075899,1739544643794,-8880.41721204,0.000136,2]
[353075901,1739544643807,-9842.3,0.000136,2]
[353076144,1739544646257,-478.3627147,0.00011872,2]
[353076145,1739544646271,-949.72354981,0.00011872,2]
[353076146,1739544646303,-172.29344059,0.00011872,2]
[353076147,1739544646315,-1100.0,0.000134,4]
[353076148,1739544646327,-16306.648855,0.000136,2]
[353076150,1739544646338,-5000.0,0.00013654,3]
[353076152,1739544646350,-697983.78074986,0.00013663,2]
[353076154,1739544646361,-1482.82226923,0.00013663,2]
[353076156,1739544646373,-500.0,0.00013673,2]
[353076157,1739544646384,-550.50616018,0.0001368,2]
[353076158,1739544646395,-207.13291083,0.0001368,2]
[353076159,1739544646407,-339.13386762,0.00013688,2]
[353076160,1739544646419,-55046.80788943,0.00013695,2]
[353076161,1739544646430,-1911.281941,0.00013698,2]
[353076162,1739544646441,-1337.301732,0.00013698,2]
[353076163,1739544646452,-500.0,0.00013698,2]
[353076165,1739544646464,-500.0,0.00013698,2]
[353076166,1739544646475,-447.9847992,0.00013698,2]
[353076167,1739544646489,-659.14,0.00013698,2]
[353076168,1739544646500,-500.0,0.00013698,2]
[353076169,1739544646512,-500.0,0.00013698,2]
[353076170,1739544646524,-506.7548493,0.00013698,2]
[353076171,1739544646535,-500.0,0.00013698,2]
[353076172,1739544646547,-352.31729611,0.00013698,2]
[353076173,1739544646559,-709.35,0.00013698,2]
[353076174,1739544646571,-500.0,0.00013698,2]
[353076175,1739544646583,-500.0,0.00013698,2]
[353076176,1739544646594,-500.0,0.00013698,2]
[353076177,1739544646606,-151.0,0.00013698,2]
[353076178,1739544646617,-505.16684489,0.00013698,2]
[353076179,1739544646629,-500.0,0.00013698,2]
[353076180,1739544646642,-500.0,0.00013698,2]
[353076181,1739544646655,-500.0,0.00013698,2]
[353076184,1739544646666,-500.0,0.00013698,2]
[353076187,1739544646677,-631.86,0.00013698,2]
[353076189,1739544646688,-500.0,0.00013698,2]
[353076191,1739544646700,-500.0,0.00013698,2]
[353076193,1739544646711,-500.0,0.00013698,2]
[353076195,1739544646724,-500.0,0.00013698,2]
[353076196,1739544646738,-500.0,0.00013698,2]
[353076197,1739544646750,-500.0,0.00013698,2]
[353076198,1739544646763,-718.88,0.00013698,2]
[353076199,1739544646775,-500.0,0.00013698,2]
[353076200,1739544646787,-500.0,0.00013698,2]
[353076201,1739544646800,-594.18,0.00013698,2]
[353076202,1739544646812,-500.0,0.00013698,2]
[353076203,1739544646824,-621.55,0.00013698,2]
[353076204,1739544646836,-500.0,0.00013698,2]
[353076205,1739544646848,-500.0,0.00013698,2]
[353076206,1739544646860,-500.0,0.00013698,2]
[353076207,1739544646872,-524.12444529,0.00013698,2]
[353076208,1739544646884,-500.0,0.00013698,2]
[353076209,1739544646896,-500.0,0.00013698,2]
[353076210,1739544646907,-508.46173115,0.00013698,2]
[353076211,1739544646920,-500.0,0.00013698,2]
[353076212,1739544646944,-500.0,0.00013698,2]
[353076213,1739544646979,-500.0,0.00013698,2]
[353076214,1739544647043,-742.42,0.00013698,2]
[353076215,1739544647158,-500.0,0.00013698,2]
[353076216,1739544647318,-814.3,0.00013698,2]
[353076217,1739544647450,-500.0,0.00013698,2]
[353076218,1739544647559,-504.86344244,0.00013698,2]
[353076219,1739544647631,-500.0,0.00013698,2]
[353076220,1739544647711,-500.0,0.00013698,2]
[353076221,1739544647863,-500.0,0.00013698,2]
[353076222,1739544647967,-503.70136658,0.00013698,2]
[353076223,1739544648044,-500.0,0.00013698,2]
[353076224,1739544648081,-502.86064383,0.00013698,2]
[353076225,1739544648095,-500.0,0.00013698,2]
[353076226,1739544648106,-500.0,0.00013698,2]
[353076227,1739544648116,-500.0,0.00013698,2]
[353076228,1739544648127,-500.0,0.00013698,2]
[353076229,1739544648136,-500.0,0.00013698,2]
[353076230,1739544648147,-539.6,0.00013698,2]
[353076231,1739544648158,-503.29963569,0.00013698,2]
[353076232,1739544648577,-500.0,0.00013698,2]
[353076233,1739544648606,-509.89354146,0.00013698,2]
[353076234,1739544648624,-500.0,0.00013698,2]
[353076235,1739544648634,-667.62,0.00013698,2]
[353076236,1739544648646,-500.0,0.00013698,2]
[353076237,1739544648663,-367.02830154,0.00013698,2]
[353076238,1739544648677,-500.0,0.00013698,2]
[353076239,1739544648687,-502.23680562,0.00013698,2]
[353076240,1739544648698,-500.0,0.00013698,2]
[353076241,1739544648710,-500.0,0.00013698,2]
[353076242,1739544648721,-500.0,0.00013698,2]
[353076243,1739544648732,-455.9104615,0.00013698,2]
[353076244,1739544648745,-500.0,0.00013698,2]
[353076245,1739544648755,-500.0,0.00013698,2]
[353076246,1739544648765,-502.75049593,0.00013698,2]
[353076247,1739544648776,-524.12,0.00013698,2]
[353076248,1739544648787,-500.0,0.00013698,2]
[353076249,1739544648799,-500.0,0.00013698,2]
[353076250,1739544648809,-503.78,0.00013698,2]
[353076251,1739544648820,-500.0,0.00013698,2]
[353076252,1739544648831,-760.17,0.00013698,2]
[353076253,1739544648841,-1130.54,0.00013698,2]
[353076254,1739544648852,-901.3,0.00013698,2]
[353076255,1739544648865,-500.0,0.00013698,2]
[353076256,1739544648876,-500.0,0.00013698,2]
[353076257,1739544648887,-500.0,0.00013698,2]
[353076258,1739544648898,-500.0,0.00013698,2]
[353076259,1739544648909,-505.98808965,0.00013698,2]
[353076260,1739544648920,-504.50877733,0.00013698,2]
[353076261,1739544648930,-500.0,0.00013698,2]
[353076262,1739544648941,-500.0,0.00013698,2]
[353076263,1739544648953,-500.0,0.00013698,2]
[353076264,1739544648964,-607.24,0.00013698,2]
[353076265,1739544648974,-500.0,0.00013698,2]
[353076266,1739544648988,-609.68,0.00013698,2]
[353076267,1739544648999,-673.47,0.00013698,2]
[353076268,1739544649011,-500.0,0.00013698,2]
[353076269,1739544649022,-500.0,0.00013698,2]
[353076270,1739544649032,-500.0,0.00013698,2]
[353076271,1739544649043,-500.0,0.00013698,2]
[353076272,1739544649054,-500.0,0.00013698,2]
[353076273,1739544649065,-500.0,0.00013698,2]
[353076274,1739544649076,-500.0,0.00013698,2]
[353076275,1739544649088,-500.0,0.00013698,2]
[353076276,1739544649099,-619.31,0.00013698,2]
[353076277,1739544649110,-500.0,0.00013698,2]
[353076278,1739544649120,-500.0,0.00013698,2]
[353076279,1739544649131,-500.0,0.00013698,2]
[353076280,1739544649142,-500.0,0.00013698,2]
[353076281,1739544649153,-717.98,0.00013698,2]
[353076282,1739544649166,-500.0,0.00013698,2]
[353076283,1739544649176,-920.52,0.00013698,2]
[353076284,1739544649186,-1053.05,0.00013698,2]
[353076285,1739544649195,-579.27,0.00013698,2]
[353076286,1739544649206,-500.0,0.00013698,2]
[353076287,1739544649216,-500.0,0.00013698,2]
[353076288,1739544649226,-655.19,0.00013698,2]
[353076289,1739544649238,-151.0,0.00013698,2]
[353076290,1739544649249,-442.29076141,0.00013698,2]
[353076291,1739544649259,-551.39,0.00013698,2]
[353076292,1739544649269,-500.0,0.00013698,2]
[353076293,1739544649279,-505.47246156,0.00013698,2]
[353076294,1739544649288,-500.0,0.00013698,2]
[353076295,1739544649298,-916.51,0.00013698,2]
[353076296,1739544649309,-500.0,0.00013698,2]
[353076297,1739544649321,-690.09,0.00013698,2]